bitfinex-derivatives/quotes_BTCF0:USTF0_20241125
["timestamp","ask_amount","ask_price","bid_price","bid_amount"]
[1732516989013,0.01611853,98262.0,98261.0,0.487586]
[1732516989211,0.0304,98279.0,98261.0,0.487586]
[1732516989410,0.0304,98279.0,98272.0,0.05082]
[1732516989606,0.0304,98279.0,98272.0,0.18222]
[1732516991508,0.3608,98286.0,98272.0,0.4875]
[1732516991710,0.3608,98286.0,98272.0,0.5205]
[1732516991907,0.032,98294.0,98272.0,0.5205]
[1732516994214,0.05081,98292.0,98272.0,0.5205]
[1732516994418,0.050811,98291.0,98272.0,0.5205]
[1732516996511,0.3608,98292.0,98272.0,0.5205]
[1732516996820,0.3608,98292.0,98272.0,0.5522]
[1732516997424,0.41161,98292.0,98272.0,0.5522]
[1732516997609,0.00987131,98273.0,98272.0,0.5522]
[1732516998522,0.00012789,98273.0,98272.0,0.5522]
[1732516998812,0.01000144,98273.0,98272.0,0.5522]
[1732516999519,0.00998445,98273.0,98272.0,0.5522]
[1732517000717,0.00012789,98273.0,98272.0,0.5522]
[1732517000921,0.01004787,98273.0,98272.0,0.5522]
[1732517001210,0.01004787,98273.0,98272.0,0.57723104]
[1732517002411,0.00993176,98273.0,98272.0,0.57723104]
[1732517003209,0.00993176,98273.0,98272.0,0.27195104]
[1732517005124,0.00993176,98273.0,98272.0,0.23895104]
[1732517005423,0.00993176,98273.0,98272.0,0.42025185]
[1732517006215,0.00993176,98273.0,98272.0,0.23895104]
[1732517007020,0.00993176,98273.0,98272.0,0.59975104]
[1732517008322,0.00012789,98273.0,98272.0,0.59975104]
[1732517008919,0.12139237,98290.0,98289.0,0.050811]
[1732517009111,0.032,98294.0,98289.0,0.181771]
[1732517009112,0.12139237,98291.0,98289.0,0.181771]
[1732517009319,0.082809,98294.0,98289.0,0.182171]
[1732517009618,0.082809,98294.0,98293.0,0.0004]
[1732517013213,0.032,98294.0,98293.0,0.0004]
[1732517016231,0.032,98294.0,98293.0,0.1820232]
[1732517017332,0.032,98294.0,98293.0,0.0004]
[1732517017939,0.050812,98288.0,98286.0,0.13092]
[1732517018234,0.050819,98274.0,98272.0,0.05082]
[1732517018434,0.0619,98273.0,98270.0,0.13092]
[1732517018734,0.0619,98273.0,98272.0,0.05082]
[1732517021548,0.0931,98273.0,98272.0,0.05082]
[1732517023244,0.21488226,98273.0,98272.0,0.05082]
[1732517023442,0.0931,98273.0,98272.0,0.05082]
[1732517024045,0.21488418,98273.0,98272.0,0.05082]
[1732517024445,0.0931,98273.0,98272.0,0.05082]
[1732517024640,0.21488418,98273.0,98272.0,0.05082]
[1732517025142,0.0931,98273.0,98272.0,0.05082]
[1732517025550,0.0931,98273.0,98271.0,0.13092]
[1732517026052,0.17258873,98272.0,98271.0,0.13092]
[1732517026257,0.05082,98272.0,98271.0,0.13092]
[1732517027853,0.17258873,98272.0,98271.0,0.13092]
[1732517028054,0.20358873,98272.0,98271.0,0.13092]
[1732517028249,0.08182,98272.0,98271.0,0.13092]
[1732517033652,0.031,98272.0,98265.0,0.050824]
[1732517033851,0.050823,98266.0,98265.0,0.050824]
[1732517034056,0.050823,98266.0,98265.0,0.181744]
[1732517034659,0.051223,98266.0,98265.0,0.13092]
[1732517035352,0.051223,98266.0,98262.0,0.38619368]
[1732517035353,0.050825,98263.0,98262.0,0.38619368]
[1732517035549,0.0004,98266.0,98251.0,0.24244952]
[1732517035550,0.3608,98264.0,98251.0,0.24244952]
[1732517035858,0.3612,98252.0,98242.0,0.40606952]
[1732517036156,0.3612,98252.0,98245.0,0.02492476]
[1732517036360,0.050833,98247.0,98245.0,9.152e-05]
[1732517036760,0.0004,98246.0,98245.0,9.152e-05]
[1732517037059,0.0004,98246.0,98245.0,0.18184552]
[1732517038061,0.0004,98246.0,98245.0,0.13101152]
[1732517038462,0.0004,98246.0,98245.0,0.18184552]
[1732517039259,0.0004,98246.0,98245.0,0.54264552]
[1732517039759,0.051234,98246.0,98245.0,0.13101152]
[1732517040257,0.051234,98246.0,98245.0,9.152e-05]
[1732517040452,0.412034,98246.0,98245.0,9.152e-05]
[1732517041757,0.051234,98246.0,98245.0,9.152e-05]
[1732517042862,0.412034,98246.0,98245.0,9.152e-05]
[1732517043758,0.051234,98246.0,98245.0,9.152e-05]
[1732517044660,0.50317594,98246.0,98245.0,9.152e-05]
[1732517045255,0.14235861,98246.0,98245.0,9.152e-05]
[1732517045464,0.412034,98246.0,98245.0,9.152e-05]
[1732517048469,0.050841,98232.0,98231.0,0.00052]
[1732517048669,0.050843,98228.0,98227.0,0.16152]
[1732517048966,0.050849,98216.0,98215.0,0.24787]
[1732517049658,0.050849,98216.0,98215.0,0.24799691]
[1732517049863,0.051249,98216.0,98215.0,0.11707691]
[1732517050061,0.051249,98216.0,98215.0,0.24799691]
[1732517051067,0.051249,98216.0,98215.0,0.06622691]
[1732517055771,0.051249,98216.0,98215.0,0.03292691]
[1732517063969,0.051249,98216.0,98215.0,0.08377691]
[1732517065072,0.0004,98216.0,98215.0,0.57553691]
[1732517066076,0.0004,98216.0,98215.0,0.21473691]
[1732517069784,0.0004,98216.0,98215.0,0.57553691]
[1732517070874,0.09153606,98216.0,98215.0,0.57553691]
[1732517071883,0.0004,98216.0,98215.0,0.57553691]
[1732517074288,0.09172254,98216.0,98215.0,0.57553691]
[1732517074988,0.0004,98216.0,98215.0,0.57553691]
[1732517077394,0.0004,98216.0,98215.0,0.88097691]
[1732517077588,0.0004,98216.0,98215.0,1.16322095]
[1732517082985,0.00011738,98231.0,98215.0,1.46322095]
[1732517083194,0.00011738,98231.0,98230.0,0.3608]
[1732517083391,0.00011738,98231.0,98230.0,0.4922]
[1732517083696,0.00011738,98231.0,98230.0,0.543042]
[1732517084589,0.00011738,98231.0,98230.0,0.84684425]
[1732517084785,0.00011738,98231.0,98230.0,1.15224425]
[1732517084993,0.09132254,98246.0,98243.0,0.050835]
[1732517085191,0.09132254,98248.0,98247.0,0.050833]
[1732517085399,0.09132254,98253.0,98251.0,0.050831]
[1732517085697,0.09132254,98253.0,98252.0,0.0004]
[1732517086293,0.09132254,98256.0,98255.0,0.050829]
[1732517086487,0.09132254,98256.0,98255.0,0.182229]
[1732517086699,0.09132254,98256.0,98255.0,0.182629]
[1732517087197,0.09132254,98258.0,98255.0,0.1318]
[1732517087386,0.09132254,98258.0,98257.0,0.050828]
[1732517087593,0.09132254,98258.0,98257.0,0.051228]
[1732517088297,0.3608,98264.0,98257.0,0.0004]
[1732517088502,0.050827,98259.0,98257.0,0.0004]
[1732517088697,0.050827,98259.0,98255.0,0.1314]
[1732517088698,0.0304,98258.0,98255.0,0.1314]
[1732517089088,0.0004,98256.0,98255.0,0.1314]
[1732517089392,0.0004,98256.0,98255.0,0.15627151]
[1732517093707,0.051228,98256.0,98255.0,0.15627151]
[1732517094303,0.0004,98256.0,98255.0,0.15627151]
[1732517095202,0.051228,98256.0,98255.0,0.07570051]
[1732517095406,0.051228,98256.0,98255.0,0.20706051]
[1732517097204,0.05083,98253.0,98252.0,0.0004]
[1732517097803,0.05123,98253.0,98252.0,0.0004]
[1732517098000,0.14237292,98253.0,98252.0,0.0004]
[1732517098302,0.53379873,98253.0,98252.0,0.0004]
[1732517098507,0.41203,98253.0,98252.0,0.0004]
[1732517098698,0.53379873,98253.0,98252.0,0.0004]
[1732517098900,0.41203,98253.0,98252.0,0.0004]
[1732517100104,0.71735,98253.0,98252.0,0.0004]
[1732517101301,0.53361828,98253.0,98252.0,0.0004]
[1732517101502,0.83893828,98253.0,98252.0,0.0004]
[1732517101704,0.71735,98253.0,98252.0,0.0004]
[1732517101898,0.83893828,98253.0,98252.0,0.0004]
[1732517102110,0.41203,98253.0,98252.0,0.0004]
[1732517102309,0.53361828,98253.0,98252.0,0.0004]
[1732517102501,0.05123,98253.0,98252.0,0.051231]
[1732517103304,0.0004,98253.0,98252.0,0.051231]
[1732517105305,0.12198828,98253.0,98252.0,0.051231]
[1732517105504,0.0004,98253.0,98252.0,0.051231]
[1732517105905,0.12198828,98253.0,98252.0,0.051231]
[1732517106505,0.0004,98253.0,98252.0,0.051231]
[1732517107104,0.12212023,98253.0,98252.0,0.051231]
[1732517107314,0.0004,98253.0,98252.0,0.051231]
[1732517107610,0.12215249,98253.0,98252.0,0.051231]
[1732517107912,0.0004,98253.0,98252.0,0.051231]
[1732517114418,0.0004,98253.0,98252.0,0.412031]
[1732517114615,0.0004,98253.0,98252.0,0.505631]
[1732517117115,0.09181974,98253.0,98252.0,0.505631]
[1732517117520,0.0004,98253.0,98252.0,0.505631]
[1732517117710,0.09181468,98253.0,98252.0,0.505631]
[1732517117903,0.0004,98253.0,98252.0,0.505631]
[1732517118518,0.0004,98253.0,98252.0,0.7849484]
[1732517120017,0.0004,98253.0,98252.0,0.80946729]
[1732517120214,0.0004,98253.0,98252.0,0.80943173]
[1732517120509,0.0004,98253.0,98252.0,1.08703137]
[1732517121014,0.0004,98253.0,98252.0,0.78323064]
[1732517121205,0.0004,98253.0,98252.0,1.08699913]
[1732517122112,0.0004,98253.0,98252.0,0.80939949]
[1732517123016,0.0004,98253.0,98252.0,1.08675574]
[1732517123217,0.0004,98253.0,98252.0,0.505631]
[1732517124214,0.0004,98253.0,98252.0,0.810951]
[1732517124521,0.09140024,98267.0,98265.0,0.050824]
[1732517124716,0.09140024,98267.0,98266.0,0.13088]
[1732517124915,0.09128873,98267.0,98266.0,0.13099994]
[1732517125114,0.0001008,98268.0,98267.0,0.050823]
[1732517125515,0.0001008,98268.0,98267.0,0.051623]
[1732517132632,0.0509228,98268.0,98267.0,0.13168]
[1732517132925,0.0001008,98268.0,98267.0,0.182503]
[1732517133129,0.0001008,98268.0,98267.0,0.13168]
[1732517133333,0.0509228,98268.0,98267.0,0.13164]
[1732517133537,0.0509228,98268.0,98267.0,0.0008]
[1732517136236,0.14219568,98268.0,98267.0,0.0008]
[1732517136444,0.0509228,98268.0,98267.0,0.0008]
[1732517138640,0.14216554,98268.0,98267.0,0.0008]
[1732517139233,0.0509228,98268.0,98267.0,0.0008]
[1732517146248,0.20330573,98268.0,98267.0,0.0008]
[1732517147149,0.2031482,98268.0,98267.0,0.0008]
[1732517147342,0.0509228,98268.0,98267.0,0.0008]
[1732517148548,0.10035095,98268.0,98267.0,0.0008]
[1732517153249,0.0509228,98268.0,98267.0,0.0008]
[1732517153450,0.2030545,98268.0,98267.0,0.0008]
[1732517153846,0.2030545,98268.0,98252.0,0.18206635]
[1732517153847,0.05083,98253.0,98252.0,0.18206635]
[1732517154057,0.1217056,98255.0,98244.0,0.18258635]
[1732517154250,0.050835,98243.0,98242.0,0.18206635]
[1732517154452,0.050836,98242.0,98241.0,0.31406635]
[1732517154647,0.050836,98242.0,98241.0,0.31346635]
[1732517154850,0.051236,98242.0,98241.0,0.3130724]
[1732517155855,0.14251948,98242.0,98241.0,0.31321612]
[1732517156055,0.051236,98242.0,98241.0,0.13100605]
[1732517156652,0.14251948,98242.0,98241.0,0.13100605]
[1732517157157,0.051236,98242.0,98241.0,0.00012605]
[1732517158254,0.17286006,98242.0,98241.0,0.00012605]
[1732517158451,0.051236,98242.0,98241.0,0.00012605]
[1732517158952,0.17286045,98242.0,98241.0,0.00012605]
[1732517159153,0.17284354,98242.0,98241.0,0.00012605]
[1732517159557,0.051236,98242.0,98241.0,0.00012605]
[1732517161164,0.17284354,98242.0,98241.0,0.00012605]
[1732517161460,0.17285302,98242.0,98241.0,0.00012605]
[1732517161856,0.051236,98242.0,98241.0,0.00012605]
[1732517170272,0.356596,98242.0,98241.0,0.00012605]
[1732517170568,0.050844,98225.0,98224.0,0.16268]
[1732517170957,0.051244,98225.0,98224.0,0.0318]
[1732517171371,0.051244,98225.0,98224.0,0.03187837]
[1732517172264,0.14243502,98225.0,98224.0,0.03187837]
[1732517172866,0.051244,98225.0,98224.0,0.03187837]
[1732517175664,0.14245481,98225.0,98224.0,7.837e-05]
[1732517176469,0.14246249,98225.0,98224.0,7.837e-05]
[1732517176668,0.051244,98225.0,98224.0,7.837e-05]
[1732517179173,0.0004,98225.0,98224.0,7.837e-05]
[1732517179474,0.0004,98225.0,98224.0,0.03187837]
[1732517185276,0.051244,98225.0,98224.0,0.16279837]
[1732517186173,0.051244,98225.0,98224.0,7.837e-05]
[1732517196177,0.66664,98225.0,98213.0,0.18249104]
[1732517196484,0.3608,98214.0,98208.0,0.18249104]
[1732517196681,0.050854,98207.0,98206.0,0.18249104]
[1732517196983,0.050854,98206.0,98205.0,0.31337104]
[1732517197188,0.050854,98206.0,98205.0,0.31344563]
[1732517197375,0.051254,98206.0,98205.0,0.13095459]
[1732517197582,0.051254,98206.0,98205.0,0.31346507]
[1732517197776,0.051254,98206.0,98205.0,0.13095459]
[1732517198189,0.051254,98206.0,98205.0,0.31344606]
[1732517198491,0.051254,98206.0,98205.0,0.18256606]
[1732517198681,0.051254,98206.0,98205.0,7.459e-05]
[1732517199579,0.17309269,98206.0,98205.0,0.18256606]
[1732517199889,0.17309269,98206.0,98205.0,7.459e-05]
[1732517200093,0.17309269,98206.0,98205.0,0.23342106]
[1732517200381,0.0004,98206.0,98205.0,0.23336868]
[1732517200587,0.0004,98206.0,98205.0,0.05092959]
[1732517200780,0.051254,98206.0,98205.0,7.459e-05]
[1732517200982,0.051254,98206.0,98205.0,0.31340105]
[1732517201484,0.051254,98206.0,98205.0,0.13095459]
[1732517202882,0.17307111,98206.0,98205.0,0.13095459]
[1732517204778,0.17307111,98206.0,98205.0,7.459e-05]
[1732517204779,0.412054,98206.0,98205.0,7.459e-05]
[1732517205387,0.5338571,98206.0,98205.0,7.459e-05]
[1732517205690,0.412054,98206.0,98205.0,7.459e-05]
[1732517206290,0.717534,98206.0,98205.0,7.459e-05]
[1732517207078,0.717534,98206.0,98200.0,0.1]
[1732517207283,0.050857,98201.0,98200.0,0.1]
[1732517207481,0.17303238,98201.0,98200.0,0.1]
[1732517207684,0.051257,98201.0,98200.0,0.1]
[1732517208084,0.051257,98201.0,98200.0,0.10010777]
[1732517208689,0.17303238,98201.0,98200.0,0.10010777]
[1732517208887,0.051257,98201.0,98200.0,0.10010777]
[1732517212001,0.173025,98201.0,98200.0,0.10010777]
[1732517212291,0.051257,98201.0,98200.0,0.10010777]
[1732517215190,0.1730359,98201.0,98200.0,0.10010777]
[1732517215885,0.051257,98201.0,98200.0,0.10010777]
[1732517216293,0.17303595,98201.0,98200.0,0.10010777]
[1732517216495,0.051257,98201.0,98200.0,0.10010777]
[1732517218197,0.356737,98201.0,98200.0,0.10010777]
[1732517218393,0.35684797,98201.0,98200.0,0.10010777]
[1732517221602,0.05136797,98201.0,98200.0,0.10010777]
[1732517224311,0.20367875,98201.0,98200.0,0.10010777]
[1732517225603,0.1008298,98201.0,98200.0,0.10010777]
[1732517226401,0.20373835,98201.0,98200.0,0.10010777]
[1732517226804,0.05136797,98201.0,98200.0,0.10010777]
[1732517227103,0.20373835,98201.0,98200.0,0.10010777]
[1732517227291,0.05136797,98201.0,98200.0,0.10010777]
[1732517227495,0.10082956,98201.0,98200.0,0.10010777]
[1732517228598,0.10083045,98201.0,98200.0,0.10010777]
[1732517232207,0.10083045,98201.0,98183.0,0.18244646]
[1732517232208,0.050865,98185.0,98183.0,0.18244646]
[1732517232405,0.050868,98180.0,98178.0,0.18244646]
[1732517232604,0.050868,98180.0,98177.0,0.21574646]
[1732517232605,0.050868,98179.0,98177.0,0.21574646]
[1732517232913,0.3608,98186.0,98175.0,0.18244646]
[1732517232914,0.050869,98177.0,98175.0,0.18244646]
[1732517233106,0.050869,98177.0,98176.0,0.18253315]
[1732517233309,0.050869,98177.0,98176.0,8.669e-05]
[1732517233806,0.050869,98177.0,98176.0,0.18253315]
[1732517234216,0.050869,98177.0,98176.0,8.669e-05]
[1732517235714,0.10034298,98177.0,98176.0,8.669e-05]
[1732517236210,0.20317501,98177.0,98176.0,8.669e-05]
[1732517236812,0.050869,98177.0,98176.0,8.669e-05]
[1732517237517,0.20317501,98177.0,98176.0,8.669e-05]
[1732517238408,0.050869,98177.0,98176.0,8.669e-05]
[1732517238811,0.050878,98161.0,98160.0,0.16472]
[1732517239310,0.050878,98161.0,98160.0,0.0308]
[1732517239815,0.050878,98161.0,98160.0,0.03091655]
[1732517243817,0.142066,98161.0,98160.0,0.03091655]
[1732517244010,0.050878,98161.0,98160.0,0.03091655]
[1732517244926,0.142066,98161.0,98160.0,0.03091655]
[1732517245221,0.050878,98161.0,98160.0,0.03091655]
[1732517246010,0.142066,98161.0,98160.0,0.03091655]
[1732517246220,0.050878,98161.0,98160.0,0.00011655]
[1732517249914,0.14198536,98161.0,98160.0,0.00011655]
[1732517251212,0.050878,98161.0,98160.0,0.00011655]
[1732517251419,0.050878,98161.0,98160.0,0.05099455]
[1732517252125,0.09110972,98164.0,98160.0,0.00011655]
[1732517252323,0.050873,98169.0,98160.0,0.00011655]
[1732517252515,0.050877,98162.0,98160.0,0.00011655]
[1732517254923,0.14201679,98162.0,98160.0,0.00011655]
[1732517255220,0.09113979,98161.0,98160.0,0.00011655]
[1732517255416,0.050877,98162.0,98160.0,0.00011655]
[1732517255617,0.14206796,98162.0,98160.0,0.00011655]
[1732517255919,0.14206796,98162.0,98160.0,0.05099455]
[1732517255920,0.050877,98162.0,98160.0,0.05099455]
[1732517256119,0.050877,98162.0,98161.0,0.0305]
[1732517256713,0.050877,98162.0,98160.0,0.00011655]
[1732517257115,0.0004,98161.0,98160.0,0.00011655]
[1732517259418,0.051278,98161.0,98160.0,0.00011655]
[1732517259621,0.051278,98161.0,98160.0,0.05099455]
[1732517261519,0.051278,98161.0,98160.0,0.23349395]
[1732517261726,0.051278,98161.0,98160.0,0.05099455]
[1732517262332,0.172943,98161.0,98160.0,0.23349395]
[1732517262519,0.172943,98161.0,98160.0,0.05099455]
[1732517262725,0.172943,98161.0,98160.0,0.23380725]
[1732517263124,0.051278,98161.0,98160.0,0.23380725]
[1732517263323,0.051278,98161.0,98160.0,0.05099455]
[1732517265232,0.051278,98161.0,98160.0,0.00011655]
[1732517266130,0.412078,98161.0,98160.0,0.00011655]
[1732517267226,0.412078,98161.0,98160.0,0.18309579]
[1732517267730,0.051278,98161.0,98160.0,0.00011655]
[1732517268136,0.412078,98161.0,98160.0,0.00011655]
[1732517268337,0.56460476,98161.0,98160.0,0.00011655]
[1732517268833,0.46155998,98161.0,98160.0,0.00011655]
[1732517269434,0.46155986,98161.0,98160.0,0.00011655]
[1732517270335,0.56460237,98161.0,98160.0,0.00011655]
[1732517270928,0.46155836,98161.0,98160.0,0.00011655]
[1732517276433,0.56458638,98161.0,98160.0,0.00011655]
[1732517276633,0.412078,98161.0,98160.0,0.00011655]
[1732517277135,0.412078,98161.0,98160.0,0.05099455]
[1732517277337,0.56458638,98161.0,98160.0,0.05099455]
[1732517278140,0.412078,98161.0,98160.0,0.05099455]
[1732517278338,0.20379855,98161.0,98160.0,0.05099455]
[1732517279743,0.20379855,98161.0,98160.0,0.00011655]
[1732517280947,0.051278,98161.0,98160.0,0.00011655]
[1732517281243,0.412078,98161.0,98160.0,0.18311408]
[1732517281543,0.412078,98161.0,98160.0,0.00011655]
[1732517281838,0.46155689,98161.0,98160.0,0.00011655]
[1732517289145,0.10075689,98161.0,98160.0,0.00011655]
[1732517289352,0.10075689,98161.0,98160.0,0.05099455]
[1732517289559,0.20375343,98161.0,98160.0,0.05099455]
[1732517290466,0.0004,98161.0,98160.0,0.05099455]
[1732517290969,0.12238213,98161.0,98160.0,0.19143455]
[1732517291166,0.0004,98161.0,98160.0,0.19143455]
[1732517293260,0.0004,98161.0,98160.0,0.05099455]
[1732517293461,0.0004,98161.0,98160.0,0.19143455]
[1732517296367,0.0004,98161.0,98160.0,0.22243455]
[1732517296676,0.0004,98161.0,98160.0,0.46576715]
[1732517297076,0.0004,98161.0,98160.0,0.22243455]
[1732517298364,0.0004,98161.0,98160.0,0.52807455]
[1732517298565,0.0004,98161.0,98160.0,0.77140715]
[1732517298771,0.0004,98161.0,98160.0,0.52807455]
[1732517301980,0.0004,98161.0,98160.0,0.46610995]
[1732517302175,0.051278,98161.0,98160.0,0.19143455]
[1732517305678,0.0004,98161.0,98160.0,0.19143455]
[1732517307175,0.0004,98161.0,98160.0,0.43506118]
[1732517307380,0.0004,98161.0,98160.0,0.19143455]
[1732517308587,0.0004,98161.0,98160.0,0.4350233]
[1732517308887,0.0004,98161.0,98160.0,0.19143455]
[1732517312981,0.0004,98161.0,98160.0,0.18919455]
[1732517313171,0.0004,98161.0,98160.0,0.43278041]
[1732517314083,0.0004,98161.0,98160.0,0.18919455]
[1732517315585,0.051278,98161.0,98160.0,0.18919455]
[1732517315780,0.14266906,98161.0,98160.0,0.43285421]
[1732517315984,0.051278,98161.0,98160.0,0.43285421]
[1732517316286,0.051278,98161.0,98160.0,0.18919455]
[1732517316487,0.14266906,98161.0,98160.0,0.18919455]
[1732517316689,0.051278,98161.0,98160.0,0.05099455]
[1732517316883,0.14266906,98161.0,98160.0,0.18919455]
[1732517317274,0.051278,98161.0,98160.0,0.18919455]
[1732517317480,0.050878,98161.0,98160.0,0.18919455]
[1732517318390,0.14235337,98161.0,98160.0,0.18919455]
[1732517319190,0.050878,98161.0,98160.0,0.18919455]
[1732517320090,0.050878,98161.0,98160.0,0.49336035]
[1732517320292,0.050878,98161.0,98160.0,0.78304912]
[1732517320592,0.050878,98161.0,98160.0,0.47887379]
[1732517320788,0.12198213,98166.0,98163.0,0.050877]
[1732517320987,0.12198213,98166.0,98160.0,0.44395824]
[1732517321186,0.12198213,98166.0,98165.0,0.050875]
[1732517321584,0.17285713,98167.0,98165.0,0.050875]
[1732517321786,0.17285713,98167.0,98165.0,0.051275]
[1732517323185,0.050875,98167.0,98165.0,0.0004]
[1732517323389,0.0331,98166.0,98165.0,0.0004]
[1732517323588,0.0331,98166.0,98165.0,0.24455608]
[1732517323792,0.0331,98166.0,98165.0,0.0004]
[1732517325294,0.0331,98166.0,98160.0,0.13831655]
[1732517325295,0.050876,98165.0,98163.0,0.13359752]
[1732517325597,0.050878,98161.0,98160.0,0.24427263]
[1732517325987,0.051278,98161.0,98160.0,0.00011655]
[1732517326297,0.412078,98161.0,98160.0,0.00011655]
[1732517326797,0.46155801,98161.0,98160.0,0.00011655]
[1732517327092,0.46155801,98161.0,98144.0,0.24409932]
[1732517327397,0.050887,98143.0,98142.0,0.38229932]
[1732517327690,0.050887,98143.0,98142.0,0.1382]
[1732517327691,0.051287,98143.0,98142.0,0.1382]
[1732517328093,0.412087,98143.0,98142.0,0.13827165]
[1732517328299,0.412087,98143.0,98142.0,7.165e-05]
[1732517328486,0.412087,98143.0,98135.0,0.09604672]
[1732517328487,0.050891,98136.0,98135.0,0.09604672]
[1732517328887,0.051291,98136.0,98135.0,0.09604672]
[1732517329501,0.051291,98136.0,98135.0,0.09616022]
[1732517329695,0.051291,98136.0,98135.0,0.0001135]
[1732517329696,0.17304798,98136.0,98135.0,0.0001135]
[1732517330092,0.051291,98136.0,98135.0,0.0001135]
[1732517331197,0.14250399,98136.0,98135.0,0.0001135]
[1732517331392,0.051291,98136.0,98135.0,0.0001135]
[1732517332599,0.14251177,98136.0,98135.0,0.0001135]
[1732517333186,0.051291,98136.0,98135.0,0.0001135]
[1732517337297,0.41219023,98136.0,98135.0,0.0001135]
[1732517337501,0.41219023,98136.0,98114.0,0.3608]
[1732517337502,0.050899,98120.0,98114.0,0.0250848]
[1732517337795,0.050901,98116.0,98115.0,0.14424]
[1732517338393,0.050901,98116.0,98115.0,0.14436339]
[1732517340399,0.050901,98116.0,98115.0,0.00012339]
[1732517342898,0.050909,98101.0,98096.0,0.14424]
[1732517343100,0.411709,98101.0,98096.0,0.14424]
[1732517343400,0.050909,98101.0,98096.0,0.16986759]
[1732517343592,0.050909,98101.0,98096.0,0.02562759]
[1732517343795,0.050909,98101.0,98100.0,0.10008511]
[1732517345598,0.411709,98101.0,98100.0,0.10008511]
[1732517346104,0.050909,98101.0,98100.0,0.10008511]
[1732517347300,0.411709,98101.0,98100.0,0.10008511]
[1732517351601,0.050909,98101.0,98100.0,0.10008511]
[1732517352409,0.050909,98101.0,98100.0,0.24436511]
[1732517352707,0.0509,98118.0,98100.0,0.24436511]
[1732517352708,0.050905,98109.0,98100.0,0.24436511]
[1732517352924,0.050903,98113.0,98111.0,0.050903]
[1732517353218,0.050903,98113.0,98112.0,0.033]
[1732517355108,0.050905,98109.0,98108.0,0.0004]
[1732517355613,0.051305,98109.0,98108.0,0.0004]
[1732517356517,0.1728552,98109.0,98108.0,0.0004]
[1732517356705,0.051305,98109.0,98108.0,0.0004]
[1732517360116,0.050909,98101.0,98100.0,0.10008511]
[1732517360510,0.051709,98101.0,98100.0,0.10008511]
[1732517361422,0.50953771,98101.0,98100.0,0.10008511]
[1732517361613,0.05092,98079.0,98076.0,0.14428]
[1732517361915,0.05172,98079.0,98076.0,0.14428]
[1732517362215,0.05172,98079.0,98074.0,0.050922]
[1732517362414,0.05172,98079.0,98078.0,0.14580933]
[1732517362627,0.05172,98079.0,98078.0,0.14589208]
[1732517363316,0.0008,98079.0,98078.0,0.14589208]
[1732517363515,0.0008,98079.0,98078.0,0.55761308]
[1732517364405,0.0912236,98091.0,98078.0,0.86349308]
[1732517364610,0.0912236,98092.0,98090.0,0.050914]
[1732517364814,0.0912236,98096.0,98091.0,0.20668]
[1732517365019,0.05091,98100.0,98091.0,0.20708]
[1732517365221,0.0624,98112.0,98102.0,0.050908]
[1732517365413,0.050907,98105.0,98102.0,0.050908]
[1732517365609,0.050907,98105.0,98102.0,0.051308]
[1732517366011,0.050907,98104.0,98102.0,0.051308]
[1732517367117,0.48252123,98103.0,98102.0,0.051308]
[1732517368226,0.3608,98103.0,98102.0,0.051308]
[1732517368623,0.12188616,98103.0,98102.0,0.051308]
[1732517369319,0.050907,98104.0,98102.0,0.051308]
[1732517369821,0.050907,98104.0,98103.0,0.0004]
[1732517371021,0.15215154,98109.0,98103.0,0.0004]
[1732517371321,0.20305554,98110.0,98109.0,0.050905]
[1732517371713,0.050904,98110.0,98109.0,0.051305]
[1732517373219,0.51351155,98111.0,98109.0,0.051305]
[1732517373521,0.3608,98111.0,98110.0,0.0004]
[1732517373730,0.3608,98111.0,98110.0,0.0327]
[1732517376517,0.3608,98111.0,98110.0,0.0004]
[1732517376721,0.51295154,98111.0,98110.0,0.0004]
[1732517377018,0.51321819,98111.0,98110.0,0.0004]
[1732517377217,0.3608,98111.0,98110.0,0.0004]
[1732517378021,0.51321723,98111.0,98110.0,0.0004]
[1732517378618,0.41030723,98111.0,98110.0,0.0004]
[1732517379320,0.3608,98111.0,98110.0,0.0004]
[1732517379711,0.51321671,98111.0,98110.0,0.0004]
[1732517380111,0.3608,98111.0,98110.0,0.0004]
[1732517380625,0.56412229,98111.0,98110.0,0.0004]
[1732517381323,0.411704,98111.0,98110.0,0.0004]
[1732517381916,0.56412179,98111.0,98110.0,0.0004]
[1732517383019,0.411704,98111.0,98110.0,0.0004]
[1732517383816,0.56412179,98111.0,98110.0,0.0004]
[1732517384025,0.411704,98111.0,98110.0,0.0004]
[1732517385017,0.56412179,98111.0,98110.0,0.0004]
[1732517385525,0.411704,98111.0,98110.0,0.0004]
[1732517386120,0.41123625,98111.0,98110.0,0.0004]
[1732517388823,0.56365404,98111.0,98110.0,0.0004]
[1732517389329,0.41123625,98111.0,98110.0,0.0004]
[1732517391031,0.56365404,98111.0,98110.0,0.0004]
[1732517391923,0.41123625,98111.0,98110.0,0.0004]
[1732517392127,0.46074574,98111.0,98110.0,0.0004]
[1732517394029,0.46074574,98111.0,98093.0,0.24350667]
[1732517394030,0.050907,98104.0,98090.0,0.24350667]
[1732517394228,0.17300479,98091.0,98083.0,0.14652]
[1732517394423,0.051314,98091.0,98090.0,0.2442301]
[1732517394616,0.051314,98091.0,98086.0,0.2442301]
[1732517394617,0.050916,98088.0,98086.0,0.2442301]
[1732517394818,0.411716,98088.0,98086.0,0.14652]
[1732517395026,0.051316,98088.0,98086.0,0.14652]
[1732517395626,0.17338885,98088.0,98086.0,0.14652]
[1732517395820,0.17338885,98088.0,98086.0,0.3907501]
[1732517396335,0.17335837,98088.0,98085.0,0.14652]
[1732517396526,0.050917,98086.0,98085.0,0.14652]
[1732517396724,0.17295937,98086.0,98085.0,0.14652]
[1732517397030,0.17335937,98086.0,98085.0,0.14652]
[1732517397220,0.17332245,98086.0,98085.0,0.14652]
[1732517397423,0.051317,98086.0,98085.0,0.14652]
[1732517398532,0.412117,98086.0,98085.0,0.14652]
[1732517399037,0.17332245,98086.0,98085.0,0.14652]
[1732517399331,0.412117,98086.0,98085.0,0.14652]
[1732517399537,0.53412245,98086.0,98085.0,0.14652]
[1732517399936,0.05092,98080.0,98079.0,0.17844]
[1732517400135,0.14237577,98080.0,98079.0,0.17844]
[1732517400331,0.14277577,98080.0,98079.0,0.17844]